[Event "*** Titled Tuesday Blitz"]
[Site "Chess.com"]
[Date "2018.10.02"]
[Round "5"]
[White "Benek77"]
[Black "TrimitziosP7"]
[Result "0-1"]
[WhiteElo "2590"]
[BlackElo "2574"]
[TimeControl "180+2"]
[EndTime "14:03:19 PDT"]
[Termination "TrimitziosP7 won on time"]

1. e4 {[%clk 0:03:01.9]} 1... c5 {[%clk 0:02:59.8]} 2. Nf3 {[%clk 0:03:02]} 2...
d6 {[%clk 0:03:00.4]} 3. d4 {[%clk 0:03:02.1]} 3... cxd4 {[%clk 0:03:02.3]} 4.
Nxd4 {[%clk 0:03:03.7]} 4... Nf6 {[%clk 0:03:03.7]} 5. Nc3 {[%clk 0:03:04.7]}
5... a6 {[%clk 0:03:05]} 6. Be2 {[%clk 0:03:05.6]} 6... e6 {[%clk 0:03:05.7]} 7.
O-O {[%clk 0:03:05.9]} 7... Be7 {[%clk 0:03:06.7]} 8. Be3 {[%clk 0:03:04]} 8...
O-O {[%clk 0:03:07.9]} 9. f4 {[%clk 0:03:05.5]} 9... Qc7 {[%clk 0:03:07.1]} 10.
a4 {[%clk 0:03:01.2]} 10... b6 {[%clk 0:03:07.6]} 11. Bf3 {[%clk 0:02:53.3]}
11... Bb7 {[%clk 0:03:08.7]} 12. g4 {[%clk 0:02:46.6]} 12... Nc6 {[%clk
0:03:02.9]} 13. g5 {[%clk 0:02:39.8]} 13... Nd7 {[%clk 0:03:03.4]} 14. Bg2
{[%clk 0:02:37]} 14... Rac8 {[%clk 0:03:01.4]} 15. Qh5 {[%clk 0:02:30.3]} 15...
Nxd4 {[%clk 0:02:51.8]} 16. Bxd4 {[%clk 0:02:30]} 16... e5 {[%clk 0:02:52.2]}
17. Be3 {[%clk 0:02:24.5]} 17... exf4 {[%clk 0:02:52.7]} 18. Bxf4 {[%clk
0:02:24.5]} 18... Ne5 {[%clk 0:02:54.6]} 19. Rae1 {[%clk 0:02:06.7]} 19... b5
{[%clk 0:02:53.6]} 20. axb5 {[%clk 0:02:06.6]} 20... axb5 {[%clk 0:02:53.3]} 21.
Rf2 {[%clk 0:02:00]} 21... b4 {[%clk 0:02:51.9]} 22. Nd5 {[%clk 0:02:00.8]}
22... Bxd5 {[%clk 0:02:51]} 23. exd5 {[%clk 0:02:02.7]} 23... Ng6 {[%clk
0:02:51.4]} 24. Bg3 {[%clk 0:01:57.6]} 24... Rfe8 {[%clk 0:02:41.4]} 25. Qg4
{[%clk 0:01:53.6]} 25... Qb6 {[%clk 0:02:31.2]} 26. h4 {[%clk 0:01:46.8]} 26...
Bf8 {[%clk 0:02:28.7]} 27. Rxe8 {[%clk 0:01:37.7]} 27... Rxe8 {[%clk 0:02:30.6]}
28. h5 {[%clk 0:01:39.3]} 28... Ne5 {[%clk 0:02:26.7]} 29. Qf5 {[%clk
0:01:34.5]} 29... Qa7 {[%clk 0:02:11.7]} 30. h6 {[%clk 0:00:44.9]} 30... g6
{[%clk 0:02:08]} 31. Qf4 {[%clk 0:00:45.9]} 31... b3 {[%clk 0:01:59.7]} 32. cxb3
{[%clk 0:00:45.9]} 32... Nd3 {[%clk 0:01:54]} 33. Qf3 {[%clk 0:00:39.1]} 33...
Nxf2 {[%clk 0:01:52.3]} 34. Bxf2 {[%clk 0:00:41]} 34... Qa1+ {[%clk 0:01:52.1]}
35. Kh2 {[%clk 0:00:41.7]} 35... Qxb2 {[%clk 0:01:53.5]} 36. Kh3 {[%clk
0:00:35.8]} 36... Rc8 {[%clk 0:01:45.4]} 37. Qf4 {[%clk 0:00:35]} 37... Qxb3+
{[%clk 0:01:40.2]} 38. Kh2 {[%clk 0:00:30.1]} 38... Rc2 {[%clk 0:01:31.8]} 39.
Bd4 {[%clk 0:00:30.1]} 39... Qxd5 {[%clk 0:01:07.9]} 0-1

[Event "*** Titled Tuesday Blitz"]
[Site "Chess.com"]
[Date "2018.10.02"]
[Round "5"]
[White "FMJoseHerrera"]
[Black "gmcorrales"]
[Result "1-0"]
[WhiteElo "2518"]
[BlackElo "2681"]
[TimeControl "180+2"]
[EndTime "14:03:20 PDT"]
[Termination "FMJoseHerrera won by resignation"]

1. Nf3 {[%clk 0:03:01.9]} 1... Nf6 {[%clk 0:02:59.4]} 2. g3 {[%clk 0:03:00.8]}
2... g6 {[%clk 0:03:00.3]} 3. Bg2 {[%clk 0:03:02.7]} 3... Bg7 {[%clk 0:03:00.6]}
4. d3 {[%clk 0:03:04.6]} 4... O-O {[%clk 0:03:00.8]} 5. Nc3 {[%clk 0:03:05.1]}
5... d5 {[%clk 0:03:01.6]} 6. h4 {[%clk 0:03:05.6]} 6... c6 {[%clk 0:02:56.2]}
7. Bg5 {[%clk 0:03:06]} 7... Re8 {[%clk 0:02:54.8]} 8. Qd2 {[%clk 0:03:06.7]}
8... d4 {[%clk 0:02:50.1]} 9. Nb1 {[%clk 0:02:58]} 9... h5 {[%clk 0:02:43.7]}
10. Bh6 {[%clk 0:02:56.5]} 10... Qb6 {[%clk 0:02:42.3]} 11. Bxg7 {[%clk
0:02:55.4]} 11... Kxg7 {[%clk 0:02:43.1]} 12. b3 {[%clk 0:02:52.2]} 12... e5
{[%clk 0:02:41.4]} 13. a4 {[%clk 0:02:51.4]} 13... Bg4 {[%clk 0:02:37.5]} 14.
Ng5 {[%clk 0:02:51.7]} 14... a5 {[%clk 0:02:32.1]} 15. Na3 {[%clk 0:02:52.3]}
15... Nbd7 {[%clk 0:02:29.6]} 16. Nc4 {[%clk 0:02:51.4]} 16... Qc5 {[%clk
0:02:30.5]} 17. O-O {[%clk 0:02:51.5]} 17... Be6 {[%clk 0:02:26.3]} 18. f4
{[%clk 0:02:36.2]} 18... Bxc4 {[%clk 0:02:08.5]} 19. bxc4 {[%clk 0:02:35]} 19...
Ng4 {[%clk 0:02:02.9]} 20. f5 {[%clk 0:02:33.2]} 20... f6 {[%clk 0:01:53.2]} 21.
Ne6+ {[%clk 0:02:32.1]} 21... Rxe6 {[%clk 0:01:53.8]} 22. fxe6 {[%clk 0:02:34]}
22... Nf8 {[%clk 0:01:53]} 23. Rab1 {[%clk 0:02:33.2]} 23... Qe7 {[%clk
0:01:51.5]} 24. c3 {[%clk 0:02:19.7]} 24... Nxe6 {[%clk 0:01:51]} 25. cxd4
{[%clk 0:02:19.9]} 25... exd4 {[%clk 0:01:52.9]} 26. Qb2 {[%clk 0:02:14.3]}
26... Ra7 {[%clk 0:01:39]} 27. Qb6 {[%clk 0:02:14.2]} 27... Qc5 {[%clk
0:01:39.5]} 28. Bh3 {[%clk 0:02:04.2]} 28... Qe5 {[%clk 0:01:32.3]} 29. Rf3
{[%clk 0:01:49.8]} 29... Qxe2 {[%clk 0:01:30.4]} 30. Bxg4 {[%clk 0:01:50.6]}
30... hxg4 {[%clk 0:01:30.7]} 31. Rf2 {[%clk 0:01:51.7]} 31... Qxd3 {[%clk
0:01:31]} 32. Re1 {[%clk 0:01:49.9]} 32... Qxg3+ {[%clk 0:01:30.7]} 33. Kf1
{[%clk 0:01:50.8]} 33... Qh3+ {[%clk 0:01:23.2]} 34. Kg1 {[%clk 0:01:44.8]}
34... g3 {[%clk 0:00:19.4]} 35. Rfe2 {[%clk 0:01:25.5]} 35... Kh6 {[%clk
0:00:17.4]} 36. Qxa7 {[%clk 0:00:59.6]} 36... Nf4 {[%clk 0:00:18.2]} 37. Qb8
{[%clk 0:00:59.7]} 37... Nxe2+ {[%clk 0:00:09.5]} 38. Rxe2 {[%clk 0:01:01.6]}
38... Kh5 {[%clk 0:00:10]} 39. Qh8+ {[%clk 0:00:53.7]} 39... Kg4 {[%clk
0:00:10.7]} 40. Qxf6 {[%clk 0:00:53.6]} 1-0

[Event "*** Titled Tuesday Blitz"]
[Site "Chess.com"]
[Date "2018.10.02"]
[Round "5"]
[White "AliKa2810"]
[Black "TST2014"]
[Result "0-1"]
[WhiteElo "2474"]
[BlackElo "2475"]
[TimeControl "180+2"]
[EndTime "14:03:21 PDT"]
[Termination "TST2014 won by resignation"]

1. e4 {[%clk 0:03:01.9]} 1... c5 {[%clk 0:02:59.4]} 2. Nf3 {[%clk 0:03:02]} 2...
Nc6 {[%clk 0:02:58.1]} 3. d4 {[%clk 0:03:01.9]} 3... cxd4 {[%clk 0:02:59.1]} 4.
Nxd4 {[%clk 0:03:02.9]} 4... Nf6 {[%clk 0:03:00.4]} 5. Nc3 {[%clk 0:03:03.9]}
5... d6 {[%clk 0:03:01.4]} 6. Bc4 {[%clk 0:03:05.4]} 6... e5 {[%clk 0:03:01.3]}
7. Nde2 {[%clk 0:02:55.8]} 7... Be7 {[%clk 0:02:57.7]} 8. O-O {[%clk 0:02:56.6]}
8... O-O {[%clk 0:02:58.4]} 9. Bg5 {[%clk 0:02:54.8]} 9... Nxe4 {[%clk
0:02:52.7]} 10. Nxe4 {[%clk 0:02:51.1]} 10... Bxg5 {[%clk 0:02:52.8]} 11. Nxd6
{[%clk 0:02:34.9]} 11... Bg4 {[%clk 0:02:43.9]} 12. f3 {[%clk 0:01:58.2]} 12...
Be6 {[%clk 0:02:22.6]} 13. Bxe6 {[%clk 0:01:57]} 13... fxe6 {[%clk 0:02:23.9]}
14. Kh1 {[%clk 0:01:54.7]} 14... Qb6 {[%clk 0:02:16.9]} 15. Ne4 {[%clk
0:01:54.5]} 15... Rad8 {[%clk 0:02:16.1]} 16. Qe1 {[%clk 0:01:51.7]} 16... Be7
{[%clk 0:02:10.9]} 17. b3 {[%clk 0:01:47.3]} 17... Qe3 {[%clk 0:02:07.6]} 18.
N2g3 {[%clk 0:01:37]} 18... Qf4 {[%clk 0:02:02.9]} 19. Rd1 {[%clk 0:01:29.8]}
19... Bb4 {[%clk 0:02:02.3]} 20. Qe2 {[%clk 0:01:28.9]} 20... Nd4 {[%clk
0:02:02.7]} 21. Qc4 {[%clk 0:01:29.4]} 21... a5 {[%clk 0:01:57.7]} 22. c3 {[%clk
0:01:02.8]} 22... b5 {[%clk 0:01:38.3]} 23. Qc7 {[%clk 0:01:00.8]} 23... Rc8
{[%clk 0:01:18.8]} 24. Qb7 {[%clk 0:00:53.1]} 24... Bxc3 {[%clk 0:01:18.7]} 25.
Nxc3 {[%clk 0:00:12.9]} 25... Rxc3 {[%clk 0:01:18.2]} 26. Qb6 {[%clk 0:00:09.7]}
26... Rc2 {[%clk 0:01:16]} 27. Qxa5 {[%clk 0:00:09.3]} 27... h5 {[%clk
0:00:55.8]} 28. Qb6 {[%clk 0:00:10.1]} 28... h4 {[%clk 0:00:56.4]} 29. Ne4
{[%clk 0:00:11.4]} 29... h3 {[%clk 0:00:56.1]} 30. g3 {[%clk 0:00:11.9]} 30...
Nxf3 {[%clk 0:00:56.5]} 31. Rd2 {[%clk 0:00:09.2]} 31... Rxd2 {[%clk 0:00:54.6]}
32. Qxe6+ {[%clk 0:00:10.4]} 32... Rf7 {[%clk 0:00:54.9]} 33. Qc8+ {[%clk
0:00:10.2]} 33... Rf8 {[%clk 0:00:37.4]} 34. Qe6+ {[%clk 0:00:10.7]} 34... Qf7
{[%clk 0:00:38.5]} 35. Qxh3 {[%clk 0:00:08.3]} 35... Rxh2+ {[%clk 0:00:37.5]}
36. Qxh2 {[%clk 0:00:09.6]} 36... Nxh2 {[%clk 0:00:39]} 0-1

[Event "*** Titled Tuesday Blitz"]
[Site "Chess.com"]
[Date "2018.10.02"]
[Round "5"]
[White "nearestway"]
[Black "Vamostodorecto"]
[Result "1-0"]
[WhiteElo "2535"]
[BlackElo "2411"]
[TimeControl "180+2"]
[EndTime "14:03:33 PDT"]
[Termination "nearestway won on time"]

1. c4 {[%clk 0:03:01.9]} 1... e5 {[%clk 0:02:56]} 2. g3 {[%clk 0:03:02.5]} 2...
Nc6 {[%clk 0:02:53.2]} 3. Bg2 {[%clk 0:03:03.4]} 3... Bc5 {[%clk 0:02:54.1]} 4.
Nc3 {[%clk 0:03:03.9]} 4... d6 {[%clk 0:02:54.4]} 5. Nf3 {[%clk 0:03:04.5]} 5...
a6 {[%clk 0:02:54.3]} 6. O-O {[%clk 0:03:04.7]} 6... h5 {[%clk 0:02:50]} 7. h4
{[%clk 0:02:53.7]} 7... Bg4 {[%clk 0:02:41.3]} 8. d3 {[%clk 0:02:44.8]} 8... Qd7
{[%clk 0:02:35.8]} 9. a3 {[%clk 0:02:37.7]} 9... Nge7 {[%clk 0:02:33.3]} 10. b4
{[%clk 0:02:37.2]} 10... Ba7 {[%clk 0:02:33.2]} 11. Bd2 {[%clk 0:02:21.9]} 11...
f6 {[%clk 0:02:11.3]} 12. Ne4 {[%clk 0:02:10.2]} 12... Bh3 {[%clk 0:01:48.7]}
13. Kh2 {[%clk 0:02:04.7]} 13... Bxg2 {[%clk 0:01:48.4]} 14. Kxg2 {[%clk
0:02:06.6]} 14... d5 {[%clk 0:01:22.1]} 15. cxd5 {[%clk 0:02:04.7]} 15... Nxd5
{[%clk 0:01:24]} 16. Nc5 {[%clk 0:02:00.7]} 16... Bxc5 {[%clk 0:00:56.7]} 17.
bxc5 {[%clk 0:02:02.6]} 17... Nd4 {[%clk 0:00:26.8]} 18. Nxd4 {[%clk 0:01:49.3]}
18... exd4 {[%clk 0:00:28.7]} 19. Qb3 {[%clk 0:01:30.8]} 19... Qc6 {[%clk
0:00:29.3]} 20. Kg1 {[%clk 0:01:31.8]} 20... g5 {[%clk 0:00:27.7]} 21. Rab1
{[%clk 0:01:25.2]} 21... Rb8 {[%clk 0:00:23.2]} 22. Qc4 {[%clk 0:01:21]} 22...
gxh4 {[%clk 0:00:21.7]} 23. Qxd4 {[%clk 0:01:20.9]} 23... hxg3 {[%clk
0:00:22.6]} 24. fxg3 {[%clk 0:01:19.8]} 24... Rg8 {[%clk 0:00:21.7]} 25. Rf3
{[%clk 0:01:18.9]} 25... Qe6 {[%clk 0:00:17]} 26. e4 {[%clk 0:01:12.4]} 26...
Ne7 {[%clk 0:00:16.8]} 27. Bf4 {[%clk 0:00:52.5]} 27... h4 {[%clk 0:00:16.3]}
28. Qf2 {[%clk 0:00:47.3]} 28... Qh3 {[%clk 0:00:10.2]} 29. Bxc7 {[%clk
0:00:40.7]} 29... Rc8 {[%clk 0:00:11.2]} 30. Bd6 {[%clk 0:00:38.9]} 30... Nc6
{[%clk 0:00:11.2]} 31. Rxb7 {[%clk 0:00:38.6]} 31... hxg3 {[%clk 0:00:10.2]} 32.
Rxg3 {[%clk 0:00:38.9]} 32... Rxg3+ {[%clk 0:00:07.7]} 33. Qxg3 {[%clk
0:00:40.3]} 33... Qxg3+ {[%clk 0:00:07.9]} 34. Bxg3 {[%clk 0:00:41.9]} 34... Nd4
{[%clk 0:00:08.3]} 35. Bd6 {[%clk 0:00:41.8]} 35... Nf3+ {[%clk 0:00:05.9]} 36.
Kf2 {[%clk 0:00:41.8]} 36... Nd2 {[%clk 0:00:07.4]} 37. Ke2 {[%clk 0:00:39]}
37... Nxe4 {[%clk 0:00:02.1]} 38. dxe4 {[%clk 0:00:39.6]} 1-0

[Event "*** Titled Tuesday Blitz"]
[Site "Chess.com"]
[Date "2018.10.02"]
[Round "5"]
[White "EmreDedebas"]
[Black "GMBenjaminFinegold"]
[Result "0-1"]
[WhiteElo "2386"]
[BlackElo "2308"]
[TimeControl "180+2"]
[EndTime "14:03:36 PDT"]
[Termination "GMBenjaminFinegold won by resignation"]

1. Nf3 {[%clk 0:03:01.9]} 1... d5 {[%clk 0:02:59]} 2. c4 {[%clk 0:03:02.6]} 2...
c6 {[%clk 0:02:59.3]} 3. g3 {[%clk 0:03:03.6]} 3... Nf6 {[%clk 0:02:59]} 4. Bg2
{[%clk 0:03:02.1]} 4... Bg4 {[%clk 0:02:59.8]} 5. O-O {[%clk 0:02:57.8]} 5... e6
{[%clk 0:03:00.3]} 6. cxd5 {[%clk 0:02:56.5]} 6... exd5 {[%clk 0:03:00.8]} 7. d3
{[%clk 0:02:53.1]} 7... Be7 {[%clk 0:02:53.2]} 8. Nbd2 {[%clk 0:02:41.2]} 8...
O-O {[%clk 0:02:53.2]} 9. b3 {[%clk 0:02:41.5]} 9... Nbd7 {[%clk 0:02:53.6]} 10.
Bb2 {[%clk 0:02:42.4]} 10... a5 {[%clk 0:02:55.2]} 11. a3 {[%clk 0:02:42.6]}
11... Re8 {[%clk 0:02:55.8]} 12. Rc1 {[%clk 0:02:40.9]} 12... Bf8 {[%clk
0:02:54.6]} 13. Rc2 {[%clk 0:02:40.1]} 13... Bh5 {[%clk 0:02:37.6]} 14. Re1
{[%clk 0:02:31.9]} 14... Bc5 {[%clk 0:02:34.7]} 15. h3 {[%clk 0:02:21.9]} 15...
Qb6 {[%clk 0:02:28.9]} 16. e3 {[%clk 0:02:18.3]} 16... Rad8 {[%clk 0:02:21.7]}
17. Qa1 {[%clk 0:02:09.3]} 17... Bg6 {[%clk 0:02:20.2]} 18. Bf1 {[%clk
0:02:04.4]} 18... Bf8 {[%clk 0:02:06.2]} 19. Nh4 {[%clk 0:02:00.1]} 19... Qa7
{[%clk 0:02:00.8]} 20. Bd4 {[%clk 0:01:59.4]} 20... c5 {[%clk 0:01:57]} 21. Bb2
{[%clk 0:01:59.6]} 21... b5 {[%clk 0:01:58.1]} 22. Nxg6 {[%clk 0:01:59.8]} 22...
hxg6 {[%clk 0:01:58.7]} 23. Nf3 {[%clk 0:02:01.4]} 23... a4 {[%clk 0:01:54.6]}
24. bxa4 {[%clk 0:01:44.9]} 24... Qxa4 {[%clk 0:01:54.3]} 25. Rec1 {[%clk
0:01:46.5]} 25... c4 {[%clk 0:01:44]} 26. Ne5 {[%clk 0:01:39.8]} 26... Nxe5
{[%clk 0:01:42.6]} 27. Bxe5 {[%clk 0:01:41.7]} 27... Qxa3 {[%clk 0:01:28.6]} 28.
Ra2 {[%clk 0:01:38.3]} 28... Qe7 {[%clk 0:01:20.2]} 29. Bd4 {[%clk 0:01:39.8]}
29... Nd7 {[%clk 0:01:05.4]} 30. Ra7 {[%clk 0:01:37.1]} 30... Qe6 {[%clk
0:01:04.3]} 31. e4 {[%clk 0:01:34.8]} 31... cxd3 {[%clk 0:00:48.4]} 32. Bxd3
{[%clk 0:01:26]} 32... dxe4 {[%clk 0:00:41.3]} 33. Bxb5 {[%clk 0:01:15.5]} 33...
Qxh3 {[%clk 0:00:38.7]} 34. Qa4 {[%clk 0:01:09.2]} 34... Ne5 {[%clk 0:00:26.1]}
35. Bxe5 {[%clk 0:00:48.7]} 35... Rxe5 {[%clk 0:00:28]} 36. Bf1 {[%clk
0:00:45.4]} 36... Qf5 {[%clk 0:00:28.4]} 37. Be2 {[%clk 0:00:19]} 37... Bc5
{[%clk 0:00:28]} 38. Ra8 {[%clk 0:00:16.9]} 38... Qxf2+ {[%clk 0:00:25.7]} 39.
Kh1 {[%clk 0:00:18.4]} 39... Qxe2 {[%clk 0:00:21.5]} 40. Rxd8+ {[%clk
0:00:18.8]} 40... Kh7 {[%clk 0:00:22.9]} 0-1

[Event "*** Titled Tuesday Blitz"]
[Site "Chess.com"]
[Date "2018.10.02"]
[Round "5"]
[White "grzechu96"]
[Black "Sychev_Klementy"]
[Result "1-0"]
[WhiteElo "2519"]
[BlackElo "2703"]
[TimeControl "180+2"]
[EndTime "14:03:39 PDT"]
[Termination "grzechu96 won on time"]

1. e4 {[%clk 0:03:01.9]} 1... c5 {[%clk 0:03:00.4]} 2. Nc3 {[%clk 0:03:02.5]}
2... d6 {[%clk 0:03:00.6]} 3. d4 {[%clk 0:03:03.5]} 3... cxd4 {[%clk 0:03:02]}
4. Qxd4 {[%clk 0:03:05.4]} 4... Bd7 {[%clk 0:02:54.5]} 5. b3 {[%clk 0:03:06]}
5... Nf6 {[%clk 0:02:53.4]} 6. Bb2 {[%clk 0:03:06.7]} 6... g6 {[%clk 0:02:52.8]}
7. O-O-O {[%clk 0:03:03]} 7... Bg7 {[%clk 0:02:53.9]} 8. Kb1 {[%clk 0:02:53.9]}
8... O-O {[%clk 0:02:53.6]} 9. f3 {[%clk 0:02:44]} 9... a5 {[%clk 0:02:50.1]}
10. a4 {[%clk 0:02:23.5]} 10... Na6 {[%clk 0:02:51.1]} 11. Bb5 {[%clk
0:02:11.2]} 11... Nc5 {[%clk 0:02:45.8]} 12. Qd2 {[%clk 0:02:08]} 12... Be6
{[%clk 0:02:43.9]} 13. Nge2 {[%clk 0:02:07.4]} 13... Qb6 {[%clk 0:02:43.5]} 14.
Nd4 {[%clk 0:02:07.9]} 14... Rfc8 {[%clk 0:02:45]} 15. Nxe6 {[%clk 0:02:08.7]}
15... Nxe6 {[%clk 0:02:44.5]} 16. Rhe1 {[%clk 0:02:03.1]} 16... Rc7 {[%clk
0:02:31.2]} 17. g4 {[%clk 0:01:55.6]} 17... h6 {[%clk 0:02:22.6]} 18. h4 {[%clk
0:01:48]} 18... g5 {[%clk 0:02:21.5]} 19. hxg5 {[%clk 0:01:48.2]} 19... hxg5
{[%clk 0:02:23.4]} 20. Nd5 {[%clk 0:01:47.9]} 20... Nxd5 {[%clk 0:02:19.9]} 21.
exd5 {[%clk 0:01:49.2]} 21... Nf4 {[%clk 0:02:19.2]} 22. Rh1 {[%clk 0:01:38.4]}
22... Rac8 {[%clk 0:02:01]} 23. c4 {[%clk 0:01:10.8]} 23... Bxb2 {[%clk
0:01:53.3]} 24. Qxb2 {[%clk 0:01:09.6]} 24... f6 {[%clk 0:01:51.4]} 25. Qc2
{[%clk 0:01:10.5]} 25... e5 {[%clk 0:01:07.9]} 26. dxe6 {[%clk 0:00:59.6]} 26...
Qe3 {[%clk 0:00:34.1]} 27. Bd7 {[%clk 0:00:51.2]} 27... f5 {[%clk 0:00:10.5]}
28. Bxc8 {[%clk 0:00:45.6]} 28... Rxc8 {[%clk 0:00:10.1]} 29. Rhe1 {[%clk
0:00:35.8]} 29... Qxf3 {[%clk 0:00:09.1]} 30. e7 {[%clk 0:00:37.3]} 30... Re8
{[%clk 0:00:09.7]} 31. gxf5 {[%clk 0:00:38.2]} 31... Kf7 {[%clk 0:00:09.7]} 32.
f6 {[%clk 0:00:36.2]} 32... Kxf6 {[%clk 0:00:07.9]} 33. Rxd6+ {[%clk 0:00:36.9]}
33... Kg7 {[%clk 0:00:09]} 34. Rd8 {[%clk 0:00:30.3]} 34... Qh5 {[%clk
0:00:03.1]} 35. Rxe8 {[%clk 0:00:26.8]} 35... Qxe8 {[%clk 0:00:03.8]} 36. Qf5
{[%clk 0:00:27.6]} 1-0

[Event "*** Titled Tuesday Blitz"]
[Site "Chess.com"]
[Date "2018.10.02"]
[Round "5"]
[White "NeverEverForever1990"]
[Black "Federtiu"]
[Result "1-0"]
[WhiteElo "2449"]
[BlackElo "2596"]
[TimeControl "180+2"]
[EndTime "14:03:43 PDT"]
[Termination "NeverEverForever1990 won by resignation"]

1. d4 {[%clk 0:03:01.9]} 1... g6 {[%clk 0:03:01.9]} 2. c4 {[%clk 0:03:02.1]}
2... Bg7 {[%clk 0:03:01.8]} 3. e4 {[%clk 0:03:03.5]} 3... d6 {[%clk 0:03:03.1]}
4. Nc3 {[%clk 0:03:04.5]} 4... e5 {[%clk 0:03:04.6]} 5. d5 {[%clk 0:03:04.2]}
5... a5 {[%clk 0:03:05.6]} 6. Be3 {[%clk 0:02:54.4]} 6... Na6 {[%clk 0:02:45.9]}
7. Be2 {[%clk 0:02:32.9]} 7... h5 {[%clk 0:02:44.7]} 8. Nf3 {[%clk 0:02:27.2]}
8... Bh6 {[%clk 0:02:43.9]} 9. Bxh6 {[%clk 0:02:27.1]} 9... Nxh6 {[%clk
0:02:45.8]} 10. Nd2 {[%clk 0:02:22.5]} 10... Bd7 {[%clk 0:02:41.4]} 11. a3
{[%clk 0:02:23.3]} 11... h4 {[%clk 0:02:39.7]} 12. Rb1 {[%clk 0:02:13.4]} 12...
Qg5 {[%clk 0:02:30.6]} 13. Nf3 {[%clk 0:01:58.3]} 13... Qxg2 {[%clk 0:02:19.2]}
14. Rg1 {[%clk 0:01:42.6]} 14... Qh3 {[%clk 0:02:14.1]} 15. Bf1 {[%clk 0:01:36]}
15... Qg4 {[%clk 0:02:15.1]} 16. Rxg4 {[%clk 0:01:36.4]} 16... Nxg4 {[%clk
0:02:16.6]} 17. h3 {[%clk 0:01:33.5]} 17... Nf6 {[%clk 0:02:16.7]} 18. b4 {[%clk
0:01:32.8]} 18... Nh5 {[%clk 0:02:16.2]} 19. c5 {[%clk 0:01:26.6]} 19... axb4
{[%clk 0:01:59.8]} 20. axb4 {[%clk 0:01:22.9]} 20... Nf4 {[%clk 0:02:01]} 21. c6
{[%clk 0:01:08.3]} 21... bxc6 {[%clk 0:01:58.3]} 22. dxc6 {[%clk 0:01:09.3]}
22... Bxh3 {[%clk 0:01:58.1]} 23. Bxh3 {[%clk 0:01:06.2]} 23... Nxh3 {[%clk
0:02:00]} 24. Nd5 {[%clk 0:00:59.5]} 24... Nf4 {[%clk 0:01:45.7]} 25. Nxf4
{[%clk 0:00:52.3]} 25... exf4 {[%clk 0:01:46.6]} 26. Qd4 {[%clk 0:00:47.7]}
26... Rh5 {[%clk 0:01:45.3]} 27. Qf6 {[%clk 0:00:42.7]} 27... h3 {[%clk
0:01:44]} 28. Ng5 {[%clk 0:00:42.8]} 28... Rxg5 {[%clk 0:01:14.8]} 29. Qxg5
{[%clk 0:00:44.7]} 29... Nxb4 {[%clk 0:01:14.5]} 30. Qf6 {[%clk 0:00:21.7]}
30... Ra4 {[%clk 0:01:00.4]} 31. Rxb4 {[%clk 0:00:17.3]} 31... Rxb4 {[%clk
0:00:59.6]} 32. Qh8+ {[%clk 0:00:18.8]} 32... Ke7 {[%clk 0:01:00.2]} 33. Qxh3
{[%clk 0:00:20.7]} 33... Rxe4+ {[%clk 0:01:01.2]} 34. Kf1 {[%clk 0:00:22]} 34...
Re6 {[%clk 0:01:01.5]} 35. Qh4+ {[%clk 0:00:22.7]} 35... Ke8 {[%clk 0:00:48.1]}
36. Qh8+ {[%clk 0:00:24.1]} 36... Ke7 {[%clk 0:00:48.7]} 37. Qc8 {[%clk
0:00:26]} 37... f3 {[%clk 0:00:46.8]} 38. Qd7+ {[%clk 0:00:26.3]} 38... Kf6
{[%clk 0:00:48.1]} 39. Qxc7 {[%clk 0:00:27.9]} 39... Ke5 {[%clk 0:00:42.8]} 40.
Qa5+ {[%clk 0:00:27.6]} 40... d5 {[%clk 0:00:42.9]} 41. Qc3+ {[%clk 0:00:26.3]}
41... d4 {[%clk 0:00:38.4]} 42. Qc5+ {[%clk 0:00:27]} 42... Ke4 {[%clk
0:00:38.1]} 43. c7 {[%clk 0:00:28.2]} 43... Ra6 {[%clk 0:00:39.1]} 44. Qc1
{[%clk 0:00:26.8]} 1-0

[Event "*** Titled Tuesday Blitz"]
[Site "Chess.com"]
[Date "2018.10.02"]
[Round "5"]
[White "chesstatour"]
[Black "Perecke"]
[Result "1/2-1/2"]
[WhiteElo "2014"]
[BlackElo "1968"]
[TimeControl "180+2"]
[EndTime "14:03:47 PDT"]
[Termination "Game drawn by repetition"]

1. c4 {[%clk 0:03:01.9]} 1... e5 {[%clk 0:02:59.5]} 2. Nc3 {[%clk 0:03:03.8]}
2... Nf6 {[%clk 0:03:00.5]} 3. g3 {[%clk 0:02:56.4]} 3... Nc6 {[%clk 0:03:02.4]}
4. Bg2 {[%clk 0:02:52]} 4... d6 {[%clk 0:03:00.3]} 5. d3 {[%clk 0:02:53.3]} 5...
Be6 {[%clk 0:03:01]} 6. Nf3 {[%clk 0:02:54.8]} 6... Qd7 {[%clk 0:03:02.1]} 7.
Bg5 {[%clk 0:02:40.9]} 7... Be7 {[%clk 0:03:03]} 8. Bxf6 {[%clk 0:02:31.1]} 8...
Bxf6 {[%clk 0:03:04.1]} 9. Nd5 {[%clk 0:02:32.7]} 9... Bxd5 {[%clk 0:03:03.9]}
10. cxd5 {[%clk 0:02:34.2]} 10... Ne7 {[%clk 0:03:05.1]} 11. Qb3 {[%clk
0:02:31.1]} 11... b6 {[%clk 0:03:03.4]} 12. Rc1 {[%clk 0:02:10.3]} 12... O-O
{[%clk 0:03:02.8]} 13. h4 {[%clk 0:01:57.3]} 13... Kh8 {[%clk 0:02:45.3]} 14.
Ng5 {[%clk 0:01:27.8]} 14... Ng8 {[%clk 0:02:25.1]} 15. Qc4 {[%clk 0:01:09.7]}
15... Bd8 {[%clk 0:02:19.7]} 16. Qc6 {[%clk 0:00:59.5]} 16... Qxc6 {[%clk
0:02:18.1]} 17. Rxc6 {[%clk 0:00:58.1]} 17... Ne7 {[%clk 0:02:18]} 18. Rc2
{[%clk 0:00:55.9]} 18... Rc8 {[%clk 0:02:18.8]} 19. O-O {[%clk 0:00:44.5]} 19...
h6 {[%clk 0:02:19.4]} 20. Nh3 {[%clk 0:00:43.1]} 20... f5 {[%clk 0:02:19.5]} 21.
f4 {[%clk 0:00:41.3]} 21... Ng6 {[%clk 0:02:11]} 22. h5 {[%clk 0:00:34.2]} 22...
Ne7 {[%clk 0:02:07.6]} 23. Rfc1 {[%clk 0:00:26.3]} 23... Ng8 {[%clk 0:02:03.7]}
24. fxe5 {[%clk 0:00:24.3]} 24... dxe5 {[%clk 0:02:02.8]} 25. e4 {[%clk
0:00:18]} 25... f4 {[%clk 0:02:00.6]} 26. gxf4 {[%clk 0:00:16.9]} 26... exf4
{[%clk 0:02:01.6]} 27. Bf3 {[%clk 0:00:16.2]} 27... Be7 {[%clk 0:01:55.8]} 28.
Nf2 {[%clk 0:00:11.6]} 28... Bc5 {[%clk 0:01:54.8]} 29. Kg2 {[%clk 0:00:11.5]}
29... Nf6 {[%clk 0:01:43.6]} 30. Rd1 {[%clk 0:00:06.5]} 30... Be3 {[%clk
0:01:25]} 31. b4 {[%clk 0:00:06.9]} 31... Nd7 {[%clk 0:01:23.7]} 32. Ng4 {[%clk
0:00:05.4]} 32... Nf6 {[%clk 0:01:20.5]} 33. Nxe3 {[%clk 0:00:05.1]} 33... fxe3
{[%clk 0:01:20.7]} 34. Re1 {[%clk 0:00:06.2]} 34... Rfe8 {[%clk 0:01:19.9]} 35.
Kf1 {[%clk 0:00:03.2]} 35... Re5 {[%clk 0:01:16.6]} 36. Rce2 {[%clk 0:00:02.8]}
36... Nxh5 {[%clk 0:01:15.8]} 37. Bxh5 {[%clk 0:00:03]} 37... Rf8+ {[%clk
0:01:09.8]} 38. Kg2 {[%clk 0:00:03.6]} 38... Rg5+ {[%clk 0:01:04.1]} 39. Bg4
{[%clk 0:00:03]} 39... Rxg4+ {[%clk 0:01:03.4]} 40. Kh3 {[%clk 0:00:04]} 40...
Rff4 {[%clk 0:00:43.1]} 41. Rxe3 {[%clk 0:00:04.9]} 41... Rh4+ {[%clk
0:00:44.3]} 42. Kg3 {[%clk 0:00:06.1]} 42... Rhg4+ {[%clk 0:00:44]} 43. Kh3
{[%clk 0:00:05.7]} 43... Rh4+ {[%clk 0:00:44.6]} 44. Kg3 {[%clk 0:00:06.8]}
44... Rhg4+ {[%clk 0:00:45.7]} 45. Kh3 {[%clk 0:00:06.8]} 1/2-1/2